bitfinex-derivatives/quotes_BNBF0:USTF0_20250709
["timestamp","ask_amount","ask_price","bid_price","bid_amount"]
[1752068342891,1.69314189,662.67,661.99,1.756]
[1752068346991,1.69314189,662.68,661.99,3.4481747]
[1752068347197,1.69314189,662.63,662.06,1.6921747]
[1752068347795,1.69314189,662.67,662.09,1.6921747]
[1752068350899,1.69314189,662.66,662.09,1.6921747]
[1752068351795,1.69314189,662.66,662.08,1.6921747]
[1752068352602,1.69314189,662.66,662.07,1.6921747]
[1752068354400,1.69314189,662.67,662.07,1.6921747]
[1752068354702,1.69314189,662.66,662.07,1.6921747]
[1752068355305,1.69314189,662.67,662.07,1.6921747]
[1752068355500,1.69314189,662.66,662.08,1.6921747]
[1752068355998,1.69314189,662.67,662.07,1.6921747]
[1752068357005,1.69314189,662.64,662.13,1.6921747]
[1752068358101,1.69314189,662.63,662.13,1.6921747]
[1752068358605,1.69314189,662.64,662.13,1.6921747]
[1752068358803,1.69314189,662.63,662.13,1.6921747]
[1752068359906,1.69314189,662.63,662.14,1.6921747]
[1752068362509,1.69314189,662.63,662.01,2.25630782]
[1752068362510,1.69314189,662.62,662.16,1.6921747]
[1752068363710,1.69314189,662.61,662.16,1.6921747]
[1752068363910,1.69314189,662.61,662.17,1.618]
[1752068365905,1.69314189,662.6,662.19,1.6921747]
[1752068366906,5.64807272,663.26,662.17,1.618]
[1752068366907,1.69314189,662.63,662.17,1.618]
[1752068376618,1.69314189,662.61,662.17,1.618]
[1752068379216,1.69314189,662.61,662.17,3.3101747]
[1752068382023,1.69314189,662.61,662.18,1.6921747]
[1752068382823,1.69314189,662.62,662.17,1.618]
[1752068384824,1.69314189,662.62,662.17,3.3101747]
[1752068386029,1.69314189,662.62,662.17,1.618]
[1752068386630,1.69314189,662.62,662.17,3.3101747]
[1752068386931,1.69314189,662.62,662.17,1.618]
[1752068389032,2.25927371,662.74,662.17,1.618]
[1752068389033,1.69314189,662.66,662.17,1.618]
[1752068389230,1.69314189,662.68,662.17,1.618]
[1752068392730,7.90862858,664.09,662.17,3.3101747]
[1752068392731,1.69314189,662.75,662.17,3.3101747]
[1752068396940,1.69314189,662.75,662.17,1.618]
[1752068397239,1.69314189,662.75,662.19,1.6921747]
[1752068398537,1.69314189,662.75,662.2,1.6921747]
[1752068399037,1.69314189,662.73,662.22,1.6921747]
[1752068399440,1.69314189,662.75,662.23,1.6921747]
[1752068399941,1.69314189,662.74,662.24,1.6921747]
[1752068401341,1.69314189,662.75,662.23,1.6921747]
[1752068401641,1.69314189,662.75,662.24,1.6921747]
[1752068401838,1.69314189,662.75,662.23,1.6921747]
[1752068403045,1.69314189,662.74,662.22,1.6921747]
[1752068403440,1.69476057,662.74,662.22,1.69247489]
[1752068404340,1.69476057,662.75,662.22,1.69247489]
[1752068404844,1.69476057,662.74,662.23,1.69247489]
[1752068406143,1.69476057,662.75,662.22,1.69247489]
[1752068406346,1.69476057,662.74,662.23,1.69247489]
[1752068406844,1.69476057,662.71,662.27,1.69247489]
[1752068409142,1.69433229,662.71,662.27,1.69201775]
[1752068410143,1.69433229,662.7,662.26,1.69201775]
[1752068410443,1.69433229,662.71,662.26,1.69201775]
[1752068415247,1.69433229,662.77,662.17,1.69201775]
[1752068415449,1.69433229,662.72,662.13,1.69201775]
[1752068417547,1.69433229,662.72,662.14,1.849]
[1752068418750,1.69433229,662.73,662.14,3.54101775]
[1752068420150,1.69433229,662.74,662.14,3.54101775]
[1752068421647,1.69433229,662.74,662.14,1.849]
[1752068422349,7.90862858,664.03,662.14,1.849]
[1752068422350,1.69433229,662.75,662.14,1.849]
[1752068423453,1.69433229,662.74,662.14,1.849]
[1752068425055,1.69433229,662.72,662.16,1.69201775]
[1752068427255,1.69433229,662.72,662.15,1.69201775]
[1752068427457,1.69433229,662.71,662.16,1.69201775]
[1752068428251,1.69433229,662.71,662.17,1.69201775]
[1752068429256,1.69433229,662.7,662.17,1.69201775]
[1752068430059,1.69433229,662.7,662.18,1.69201775]
[1752068431658,1.69433229,662.69,662.19,1.69201775]
[1752068432354,1.69433229,662.67,662.23,1.69201775]
[1752068432758,1.69433229,662.66,662.23,1.69201775]
[1752068437557,1.69433229,662.66,662.24,1.69201775]
[1752068439457,1.69433229,662.83,662.14,1.849]
[1752068439861,1.69433229,662.96,662.14,1.849]
[1752068442460,1.69433229,662.86,662.28,1.69201775]
[1752068442657,1.69433229,662.85,662.27,1.69201775]
[1752068442858,1.69433229,662.84,662.28,1.69201775]
[1752068443061,1.69433229,662.82,662.26,1.69201775]
[1752068443256,1.69433229,662.82,662.25,1.69201775]
[1752068443461,1.69433229,662.82,662.26,1.69201775]
[1752068443756,1.69433229,662.81,662.26,1.69201775]
[1752068446960,1.69433229,662.82,662.26,1.69201775]
[1752068447262,1.69433229,662.82,662.25,1.69201775]
[1752068447463,1.69433229,662.82,662.26,1.69201775]
[1752068448464,1.69433229,662.81,662.26,1.69201775]
[1752068448865,1.69433229,662.81,662.27,2.156]
[1752068449269,1.69433229,662.82,662.27,2.156]
[1752068449662,1.69433229,662.78,662.3,1.69201775]
[1752068450063,1.69433229,662.87,662.27,2.156]
[1752068450465,1.69433229,662.88,662.27,2.156]
[1752068451770,1.69433229,662.91,662.27,2.156]
[1752068452465,1.69433229,662.92,662.27,2.156]
[1752068453671,1.69433229,662.93,662.27,2.156]
[1752068457279,1.69433229,662.94,662.27,2.156]
[1752068459876,1.69433229,662.87,662.27,2.156]
[1752068460076,1.69433229,662.87,662.33,1.69201775]
[1752068461477,1.69433229,662.86,662.34,1.69201775]
[1752068461678,1.69433229,662.86,662.33,1.69201775]
[1752068461881,1.69433229,662.86,662.27,2.156]
[1752068461882,1.69433229,662.89,662.3,1.69201775]
[1752068462283,1.69433229,662.96,662.27,2.156]
[1752068462579,1.69433229,662.99,662.27,2.156]
[1752068463085,1.69433229,662.97,662.27,2.156]
[1752068463285,1.69433229,662.98,662.27,2.156]
[1752068466187,1.69433229,662.99,662.27,2.156]
[1752068466587,1.69433229,662.98,662.27,2.156]
[1752068468288,1.69433229,662.99,662.27,2.156]
[1752068470689,5.64807272,664.14,662.27,3.84801775]
[1752068470690,1.69433229,662.96,662.27,3.84801775]
[1752068472093,1.69433229,662.94,662.3,1.69201775]
[1752068473590,1.69433229,662.94,662.31,1.69201775]
[1752068474191,1.69433229,662.93,662.32,1.69201775]
[1752068475295,1.69433229,662.93,662.31,1.69201775]
[1752068475996,1.69433229,662.93,662.32,1.69201775]
[1752068476492,1.69433229,662.92,662.31,1.69201775]
[1752068476892,1.69433229,662.93,662.32,1.69201775]
[1752068477396,1.69433229,662.92,662.32,1.69201775]
[1752068478897,1.69433229,662.92,662.33,1.69201775]
[1752068479393,1.69433229,662.92,662.32,1.69201775]
[1752068479595,1.69433229,662.91,662.35,1.69201775]
[1752068481194,1.69433229,662.91,662.34,1.69201775]
[1752068481395,1.69433229,662.91,662.35,1.69201775]
[1752068482199,1.69433229,662.9,662.35,1.69201775]
[1752068482500,1.69433229,662.92,662.33,1.69201775]
[1752068483401,1.69433229,662.95,662.28,1.69201775]
[1752068483602,1.69433229,662.94,662.28,1.69201775]
[1752068484202,1.69433229,662.94,662.29,1.69201775]
[1752068486300,1.69433229,662.95,662.28,1.69201775]
[1752068486702,1.69433229,662.95,662.27,3.84801775]
[1752068487003,1.69433229,662.96,662.27,2.156]
[1752068487202,1.69433229,662.93,662.27,2.156]
[1752068488002,1.69433229,662.92,662.27,2.156]
[1752068489707,1.69433229,662.91,662.27,2.156]
[1752068491608,1.69433229,662.89,662.27,3.84801775]
[1752068492309,1.69433229,662.88,662.27,3.84801775]
[1752068492910,1.69433229,662.89,662.27,3.84801775]
[1752068493109,1.69433229,662.9,662.27,2.156]
[1752068493312,1.69433229,662.89,662.27,2.156]
[1752068494909,1.69433229,662.88,662.27,3.84801775]
[1752068495309,1.69433229,662.87,662.28,1.69201775]
[1752068495610,2.25927371,663.03,662.27,2.156]
[1752068495809,1.69364269,662.87,662.28,1.69051968]
[1752068496416,1.69364269,662.87,662.29,1.69051968]
[1752068496616,1.69364269,662.87,662.28,1.69051968]
[1752068496816,1.69364269,662.87,662.29,1.69051968]
[1752068497013,1.69364269,662.88,662.27,2.156]
[1752068497313,1.69364269,662.87,662.27,2.156]
[1752068498217,1.69364269,662.86,662.27,2.156]
[1752068498518,1.69364269,662.87,662.27,2.156]
[1752068498814,1.69364269,662.86,662.27,3.84651968]
[1752068499213,1.69364269,662.85,662.28,1.69051968]
[1752068499514,1.69364269,662.84,662.27,3.84651968]
[1752068499718,1.69364269,662.78,662.27,2.156]
[1752068500715,1.69364269,662.75,662.27,2.156]
[1752068500914,1.69364269,662.65,662.27,2.156]
[1752068501418,1.69364269,662.66,662.27,2.156]
[1752068502220,1.69364269,662.67,662.27,2.156]
[1752068502917,1.69364269,662.67,662.22,1.69051968]
[1752068503219,1.69364269,662.67,662.21,1.69051968]
[1752068503523,1.69364269,662.68,662.21,1.69051968]
[1752068504227,1.69364269,662.68,662.2,1.69051968]
[1752068505228,1.69364269,662.69,662.2,1.69051968]
[1752068506428,1.69364269,662.69,662.21,2.58]
[1752068507229,1.69364269,662.7,662.21,2.58]
[1752068509828,1.69364269,662.71,662.21,2.58]
[1752068510733,1.69364269,662.7,662.21,2.58]
[1752068512235,1.69364269,662.73,662.21,2.58]
[1752068513232,1.69364269,662.74,662.21,2.58]
[1752068513535,1.69364269,662.73,662.21,2.58]
[1752068514131,1.69364269,662.74,662.21,2.58]
[1752068517237,1.69364269,662.75,662.21,2.58]
[1752068520540,1.69364269,662.74,662.21,2.58]
[1752068521341,1.69364269,662.75,662.21,2.58]
[1752068522038,1.69364269,662.73,662.21,2.58]
[1752068522435,1.69364269,662.73,662.15,1.69051968]
[1752068523643,1.69364269,662.74,662.14,1.69051968]
[1752068524240,1.69364269,662.74,662.13,1.69051968]
[1752068524440,1.69364269,662.74,662.14,1.69051968]
[1752068525245,1.69364269,662.75,662.14,1.69051968]
[1752068526542,1.69364269,662.75,662.15,1.76]
[1752068526747,1.69364269,662.75,662.15,3.45051968]
[1752068527245,1.69364269,662.76,662.15,1.76]
[1752068531647,1.69364269,662.77,662.15,1.76]
[1752068531845,1.69364269,662.76,662.15,1.76]
[1752068533247,1.69364269,662.77,662.15,1.76]
[1752068533948,1.69364269,662.78,662.15,1.76]
[1752068534248,1.69364269,662.77,662.15,1.76]
[1752068535051,1.69364269,662.78,662.15,1.76]
[1752068536351,1.69364269,662.77,662.15,1.76]
[1752068538356,1.69364269,662.76,662.15,1.76]
[1752068540757,1.69364269,662.75,662.15,1.76]
[1752068540958,1.69364269,662.76,662.15,1.76]
[1752068541253,3.38891057,663.05,662.15,1.76]
[1752068541254,1.69364269,662.77,662.15,1.76]
[1752068543056,1.69364269,662.76,662.15,1.76]
[1752068543756,1.69364269,662.75,662.15,1.76]
[1752068544859,1.69364269,662.74,662.15,1.76]
[1752068545258,1.69364269,662.74,662.15,3.45051968]
[1752068546160,1.69364269,662.73,662.15,3.45051968]
[1752068546660,2.25927371,662.87,662.15,1.76]
[1752068546861,1.69321729,662.73,662.15,3.45045924]
[1752068547658,2.25927371,662.87,662.15,1.76]
[1752068547858,1.69335599,662.73,662.15,3.45060273]
[1752068548261,1.69335599,662.72,662.15,3.45060273]
[1752068549261,1.69335599,662.72,662.16,1.69060273]
[1752068550360,1.69335599,662.72,662.17,1.69060273]
[1752068550659,1.69335599,662.72,662.16,1.69060273]
[1752068550857,1.69335599,662.71,662.16,1.69060273]
[1752068551358,1.69335599,662.68,662.2,1.69060273]
[1752068552061,1.69335599,662.68,662.15,1.76]
[1752068552062,1.69335599,662.7,662.16,1.69060273]
[1752068552256,1.69335599,662.69,662.16,1.69060273]
[1752068553058,1.69335599,662.69,662.15,1.76]
[1752068553059,1.69335599,662.68,662.17,1.69060273]
[1752068553456,1.69335599,662.68,662.16,1.69060273]
[1752068553760,1.69335599,662.68,662.15,1.76]
[1752068554161,1.69335599,662.69,662.15,1.76]
[1752068554463,5.64807272,663.61,662.15,1.76]
[1752068554464,1.69335599,662.64,662.15,1.76]
[1752068555158,1.69335599,662.58,662.15,1.76]
[1752068557962,1.69335599,662.6,662.15,1.76]
[1752068558163,1.69335599,662.59,662.15,1.76]
[1752068560160,1.69335599,662.6,662.15,1.76]
[1752068560660,1.69335599,662.62,662.15,1.76]
[1752068561059,1.69335599,662.66,662.15,1.76]
[1752068562164,1.69335599,662.67,662.15,1.76]
[1752068562460,1.69335599,662.66,662.15,1.76]
[1752068562665,1.69335599,662.67,662.15,1.76]
[1752068567270,1.69335599,662.68,662.15,1.76]
[1752068567767,1.69335599,662.67,662.15,1.76]
[1752068569267,1.69335599,662.68,662.15,1.76]
[1752068570567,1.69335599,662.67,662.15,1.76]
[1752068570772,1.69335599,662.64,662.15,1.76]
[1752068571271,1.69335599,662.62,662.15,1.76]
[1752068571568,1.69335599,662.67,662.15,1.76]
[1752068575274,1.69335599,662.68,662.15,1.76]
[1752068577377,1.69335599,662.68,662.03,1.69060273]
[1752068578278,1.69335599,662.68,662.02,1.69060273]
[1752068578476,1.69335599,662.68,662.03,1.69060273]
[1752068579383,2.25927371,662.85,661.86,2.25630782]
[1752068579582,1.69344381,662.68,662.03,1.69163337]
[1752068580685,1.69344381,662.68,662.04,2.544]
[1752068581186,1.69344381,662.67,662.04,4.23563337]
[1752068585189,1.69344381,662.62,662.12,1.69163337]
[1752068586487,1.69344381,662.63,662.1,1.69163337]
[1752068589890,3.38891057,662.88,662.04,2.544]
[1752068589891,1.69344381,662.62,662.12,1.69163337]
[1752068590791,1.69344381,662.61,662.12,1.69163337]
[1752068592593,1.69344381,662.61,662.13,1.69163337]
[1752068592790,1.69344381,662.63,662.1,1.69163337]
[1752068593394,2.25927371,662.76,662.04,2.544]
[1752068593595,1.69388292,662.63,662.1,1.69203507]
[1752068594293,1.69388292,662.63,662.04,2.544]
[1752068594294,1.69388292,662.67,662.04,2.544]
[1752068594596,1.69388292,662.66,662.04,2.544]
[1752068595493,1.69388292,662.62,662.04,2.544]
[1752068599300,1.69427,662.62,662.04,2.544]
[1752068600202,1.69427,662.61,662.04,2.544]
[1752068604104,1.69427,662.6,662.04,2.544]
[1752068604304,1.69427,662.56,662.07,1.69268712]
[1752068604599,1.69427,662.55,662.08,1.69268712]
[1752068605100,1.69473009,662.55,662.08,1.69312945]
[1752068606200,1.69473009,662.55,662.09,1.69312945]
[1752068606703,1.69473009,662.54,662.1,1.69312945]
[1752068607204,1.69473009,662.54,662.11,1.69312945]
[1752068607704,2.25927371,662.65,662.04,2.544]
[1752068607901,1.69496545,662.54,662.11,1.69334751]
[1752068609403,1.69496545,662.53,662.11,1.69334751]
[1752068610909,1.69496545,662.53,662.1,1.69334751]
[1752068611206,1.69496545,662.51,662.09,1.69334751]
[1752068611805,1.69496545,662.52,662.08,1.69334751]
[1752068612105,1.69496545,662.5,662.05,1.69334751]
[1752068612303,1.69496545,662.47,662.04,2.544]
[1752068612506,1.69496545,662.45,662.04,2.544]
[1752068613210,1.69496545,662.44,662.04,2.544]
[1752068613409,1.69496545,662.45,662.04,2.544]
[1752068614209,1.69496545,662.46,662.04,2.544]
[1752068619412,1.69496545,662.46,662.04,2.544]
[1752068620413,1.69496545,662.44,662.04,2.544]
[1752068620808,1.69496545,662.45,662.04,2.544]
[1752068622013,1.69496545,662.46,662.04,2.544]
[1752068622220,2.25927371,662.58,662.04,2.544]
[1752068622410,1.69386232,662.46,662.04,2.544]
[1752068624711,1.69386232,662.48,662.04,2.544]
[1752068625709,1.69386232,662.49,662.04,2.544]
[1752068626808,1.69386232,662.48,662.04,2.544]
[1752068627009,1.69386232,662.49,662.04,2.544]
[1752068628313,1.69386232,662.5,662.04,2.544]
[1752068630015,1.69386232,662.54,662.04,2.544]
[1752068630214,1.69386232,662.55,662.04,2.544]
[1752068631716,1.69386232,662.62,662.04,2.544]
[1752068634817,1.69386232,662.62,661.94,1.69287696]
[1752068636516,1.69386232,662.62,661.95,1.69287696]
[1752068636920,1.69386232,662.61,661.96,1.69287696]
[1752068637316,1.69386232,662.61,661.97,2.469]
[1752068639723,1.69386232,662.58,661.99,1.69287696]
[1752068639923,1.69386232,662.58,662.0,1.69287696]
[1752068641419,1.69386232,662.57,662.0,1.69287696]
[1752068641824,1.69386232,662.6,661.97,2.469]
[1752068642022,1.69386232,662.65,661.97,2.469]
[1752068642624,1.69386232,662.64,661.97,2.469]
[1752068645621,1.69386232,662.63,661.97,2.469]
[1752068651226,1.69386232,662.62,661.97,2.469]
[1752068651731,1.69386232,662.57,661.98,1.69287696]
[1752068652227,1.69386232,662.56,661.98,1.69287696]
[1752068653230,1.69386232,662.56,661.99,1.69287696]
[1752068653735,1.69386232,662.57,661.98,1.69287696]
[1752068654229,1.69386232,662.56,661.98,1.69287696]
[1752068656837,1.69386232,662.56,661.99,1.69287696]
[1752068658235,1.69386232,662.55,662.0,1.69287696]
[1752068661036,1.69386232,662.54,662.01,1.69287696]
[1752068662242,1.69386232,662.53,662.02,1.69287696]
[1752068662742,1.69386232,662.5,662.06,1.69287696]
[1752068663442,1.69386232,662.51,662.05,1.69287696]
[1752068663643,1.69386232,662.51,662.06,1.69287696]
[1752068663938,1.69386232,662.5,662.06,1.69287696]
[1752068664644,1.69386232,662.54,662.0,1.69287696]
[1752068665240,1.69386232,662.54,662.01,1.69287696]
[1752068668252,2.25927371,662.68,661.97,2.469]
[1752068668551,1.69510038,662.54,662.01,1.69409364]
[1752068670247,1.69510038,662.53,662.01,1.69409364]
[1752068671048,1.69510038,662.54,662.02,1.69409364]
[1752068671552,1.69510038,662.54,662.01,1.69409364]
[1752068672152,1.69510038,662.54,662.02,1.69409364]
[1752068673150,1.69510038,662.55,662.02,1.69409364]
[1752068673349,1.69510038,662.54,662.02,1.69409364]
[1752068674756,1.69510038,662.51,662.08,1.69409364]
[1752068675459,1.69510038,662.5,662.08,1.69409364]
[1752068675659,1.69510038,662.51,662.07,1.69409364]
[1752068676261,1.69510038,662.51,662.08,1.69409364]
[1752068677658,1.69510038,662.51,662.07,1.69409364]
[1752068678460,1.69510038,662.51,662.08,2.298]
[1752068679162,1.69510038,662.52,662.08,2.298]
[1752068681460,1.69510038,662.51,662.08,2.298]
[1752068681961,1.69510038,662.53,662.08,2.298]
[1752068683260,1.69510038,662.52,662.08,2.298]
[1752068683661,1.69510038,662.54,662.08,2.298]
[1752068683866,1.69510038,662.55,662.08,2.298]
[1752068684666,1.69510038,662.56,662.08,2.298]
[1752068684961,1.69510038,662.62,662.09,1.69409364]
[1752068686662,1.69510038,662.63,662.09,1.69409364]
[1752068686964,1.69510038,662.62,662.08,3.99209364]
[1752068687168,1.69510038,662.62,662.09,1.69409364]
[1752068687368,1.69510038,662.62,662.08,3.99209364]
[1752068687766,1.69510038,662.62,662.09,1.69409364]
[1752068688271,1.69510038,662.61,662.1,1.69409364]
[1752068689166,1.69510038,662.62,662.11,1.69409364]
[1752068689471,1.69510038,662.63,662.11,1.69409364]
[1752068690268,1.69510038,662.62,662.11,1.69409364]
[1752068690467,1.69510038,662.63,662.11,1.69409364]
[1752068692768,1.69510038,662.63,662.1,1.69409364]
[1752068693574,1.69510038,662.62,662.12,1.69409364]
[1752068694276,1.69510038,662.6,662.14,1.69409364]
[1752068694471,1.69510038,662.61,662.14,1.69409364]
[1752068695775,1.69510038,662.6,662.15,1.69409364]
[1752068696375,1.69510038,662.6,662.16,1.69409364]
[1752068696775,1.69510038,662.59,662.16,1.69409364]
[1752068697377,2.25927371,662.71,662.16,1.69409364]
[1752068697378,1.69510038,662.6,662.16,1.69409364]
[1752068698176,1.69510038,662.59,662.16,1.69409364]
[1752068698374,1.69510038,662.6,662.16,1.69409364]
[1752068701577,1.69510038,662.6,662.15,1.69409364]
[1752068701980,1.69510038,662.6,662.16,1.69409364]
[1752068702685,1.69510038,662.6,662.15,1.69409364]
[1752068703579,1.69510038,662.62,662.13,1.69409364]
[1752068703779,1.69510038,662.62,662.12,1.69409364]
[1752068705489,1.69510038,662.63,662.12,1.69409364]
[1752068705780,1.69510038,662.62,662.12,1.69409364]
[1752068706383,1.69510038,662.62,662.13,2.591]
[1752068707189,1.69510038,662.66,662.13,2.591]
[1752068707389,1.69510038,662.69,662.13,2.591]
[1752068713998,1.69510038,662.7,662.13,2.591]
[1752068714194,1.69510038,662.71,662.13,2.591]
[1752068715397,1.69510038,662.7,662.13,2.591]
[1752068717003,1.69510038,662.69,662.13,2.591]
[1752068717203,1.69510038,662.68,662.13,2.591]
[1752068722405,1.69510038,662.67,662.13,2.591]
[1752068724206,1.69510038,662.64,662.13,4.28509364]
[1752068725507,1.69510038,662.64,662.14,1.69409364]
[1752068726809,1.69510038,662.63,662.14,1.69409364]
[1752068727405,1.69510038,662.63,662.15,1.69409364]
[1752068728609,1.69510038,662.63,662.14,1.69409364]
[1752068730312,1.69510038,662.63,662.15,1.69409364]
[1752068730712,1.69510038,662.62,662.16,1.69409364]
[1752068731010,1.69510038,662.61,662.17,1.69409364]
[1752068733508,1.69510038,662.61,662.18,1.69409364]
[1752068735509,1.69510038,662.6,662.18,1.69409364]
[1752068737616,1.69510038,662.59,662.19,1.69409364]
[1752068738713,1.69510038,662.72,662.13,2.591]
[1752068742315,1.69510038,662.68,662.13,2.591]
[1752068742912,1.69510038,662.66,662.13,4.28509364]
[1752068743513,1.69510038,662.61,662.2,1.69409364]
[1752068744416,1.69510038,662.6,662.21,1.69409364]
[1752068746420,1.69510038,662.61,662.21,1.69409364]
[1752068746619,1.69510038,662.6,662.21,1.69409364]
[1752068749023,1.69510038,662.6,662.22,1.69409364]
[1752068749224,1.69510038,662.6,662.21,1.69409364]
[1752068750921,1.69510038,662.59,662.22,1.69409364]
[1752068752126,1.69510038,662.59,662.23,1.69409364]
[1752068752823,1.69510038,662.58,662.23,1.69409364]
[1752068754928,1.69510038,662.58,662.13,2.25630782]
[1752068754929,1.69510038,662.58,662.24,1.69409364]
[1752068756630,1.69510038,662.59,662.24,1.69409364]
[1752068757628,1.69510038,662.59,662.25,2.245]
[1752068761430,1.69510038,662.65,662.25,2.245]
[1752068761631,1.69510038,662.68,662.25,2.245]
[1752068762231,1.69510038,662.67,662.25,2.245]
[1752068762936,1.69510038,662.68,662.25,2.245]
[1752068765536,1.69510038,662.69,662.25,2.245]
[1752068766532,1.69510038,662.77,662.25,2.245]
[1752068767433,1.69510038,662.78,662.25,2.245]
[1752068769537,1.69510038,662.79,662.25,2.245]
[1752068769834,1.69510038,662.9,662.26,1.69409364]
[1752068770340,1.69510038,662.91,662.25,3.93909364]
[1752068771340,1.69510038,662.92,662.25,2.245]
[1752068772535,1.69510038,662.93,662.25,2.245]
[1752068773543,1.69510038,662.94,662.25,2.245]
[1752068774639,1.69510038,662.92,662.25,1.69409364]
[1752068774834,1.69510038,662.89,662.23,1.69409364]
[1752068775034,1.69510038,662.85,662.18,1.69409364]
[1752068775637,1.69510038,662.84,662.17,1.69409364]
[1752068776536,1.69510038,662.84,662.16,1.69409364]
[1752068776737,1.69510038,662.82,662.19,1.69409364]
[1752068777340,1.69510038,662.82,662.2,1.821]
[1752068777636,1.69510038,662.8,662.22,1.69409364]
[1752068778543,1.69510038,662.8,662.21,1.69409364]
[1752068778943,1.69510038,662.82,662.2,1.821]
[1752068779342,1.69510038,662.82,662.2,3.51509364]
[1752068780043,2.25927371,662.97,662.2,3.51509364]
[1752068780243,2.25927371,662.97,662.2,1.821]
[1752068780740,1.71741787,663.11,662.2,1.821]
[1752068780942,1.71741787,663.73,662.2,1.821]
[1752068781143,1.69262155,662.82,662.2,3.51211113]
[1752068783646,2.25682873,662.97,662.2,1.821]
[1752068783841,1.69250686,662.82,662.2,3.51199086]
[1752068784449,1.69250686,662.82,662.2,1.821]
[1752068784651,1.69250686,662.82,662.2,3.51199086]
[1752068784855,1.69250686,662.82,662.2,1.821]
[1752068785255,1.69250686,662.82,662.2,3.51199086]
[1752068785952,1.69250686,662.8,662.2,1.821]
[1752068786753,1.69250686,662.79,662.2,1.821]
[1752068786953,1.69250686,662.8,662.2,1.821]
[1752068787152,1.69250686,662.79,662.2,1.821]
[1752068787356,1.69250686,662.8,662.2,1.821]
[1752068787554,1.69250686,662.79,662.2,1.821]
[1752068787757,1.69250686,662.8,662.2,1.821]
[1752068788858,1.69250686,662.78,662.2,3.51199086]
[1752068789557,1.69250686,662.76,662.21,1.69099086]
[1752068791859,1.69250686,662.85,662.2,1.821]
[1752068795162,2.25682873,663.06,662.2,1.821]
[1752068795360,1.69283233,662.85,662.2,1.821]
[1752068797666,1.69283233,662.84,662.2,1.821]
[1752068797865,1.69283233,662.85,662.2,1.821]
[1752068799565,1.69283233,662.84,662.2,1.821]
[1752068801066,1.69283233,662.74,662.24,1.6917837]
[1752068802471,1.69283233,662.73,662.24,1.6917837]
[1752068803268,1.69283233,662.73,662.25,1.6917837]
[1752068803468,1.69283233,662.74,662.24,1.6917837]
[1752068804272,1.69283233,662.73,662.25,1.6917837]
[1752068806772,1.69342539,662.73,662.25,1.6924565]
[1752068809269,1.69342539,662.73,662.26,1.6924565]
[1752068809470,1.69342539,662.72,662.26,1.6924565]
[1752068813873,1.69342539,662.72,662.27,1.6924565]
[1752068815677,1.69342539,662.72,662.28,2.001]
[1752068816174,1.69342539,662.71,662.28,2.001]
[1752068816775,1.69342539,662.73,662.28,2.001]
[1752068817377,1.69342539,662.72,662.28,2.001]
[1752068819182,1.69342539,662.71,662.28,2.001]
[1752068820280,1.69342539,662.72,662.28,2.001]
[1752068821079,1.69342539,662.71,662.28,2.001]
[1752068824079,1.6949653,662.72,662.28,2.001]
[1752068825383,1.6949653,662.71,662.28,2.001]
[1752068825681,1.6949653,662.72,662.28,2.001]
[1752068826581,1.6949653,662.71,662.28,3.69507227]
[1752068826981,1.6949653,662.7,662.28,3.69507227]
[1752068828082,1.6949653,662.71,662.28,3.69507227]
[1752068828287,1.6949653,662.7,662.28,3.69507227]
[1752068828488,1.6949653,662.71,662.28,3.69507227]
[1752068828684,1.6949653,662.7,662.28,3.69507227]
[1752068829088,1.6949653,662.72,662.28,2.001]
[1752068829989,1.6949653,662.75,662.28,2.001]
[1752068830692,1.6949653,662.79,662.28,2.001]
[1752068832292,5.64807272,663.98,662.28,2.001]
[1752068832293,1.6949653,662.78,662.28,2.001]
[1752068832490,1.6949653,662.79,662.28,2.001]
[1752068833388,1.6949653,662.78,662.28,2.001]
[1752068833894,1.6949653,662.79,662.28,2.001]
[1752068834490,1.6949653,662.78,662.28,2.001]
[1752068835496,1.6949653,662.77,662.28,2.001]
[1752068836599,1.6949653,662.72,662.28,2.001]
[1752068837096,1.6949653,662.71,662.28,2.001]
[1752068838904,1.6949653,662.79,662.34,1.69407227]
[1752068839301,1.6949653,662.8,662.33,1.69407227]
[1752068840104,1.6949653,662.8,662.34,1.69407227]
[1752068840303,1.6949653,662.81,662.34,1.69407227]
[1752068841406,1.6949653,662.82,662.33,1.69407227]
[1752068844002,1.6949653,662.8,662.36,1.69407227]